fUSD/lending_fUSD_20240920
["ID","MTS","AMOUNT","RATE_DAILY","PERIOD"]
[338613160,1726800418699,510.0,0.00022876,120]
[338613162,1726800462755,250.0,0.00012008,2]
[338613163,1726800495795,1000.0,0.0001198,2]
[338613164,1726800531514,175.6959,0.000127,2]
[338613177,1726800632441,-150.0,0.00012767,2]
[338613178,1726800632451,-122.1846872,0.00012799,2]
[338613179,1726800632627,-27.8153128,0.00012799,2]
[338613180,1726800632636,-284.20568314,0.000128,2]
[338613181,1726800632648,-483.19578721,0.000128,2]
[338613184,1726800638531,-132.35921671,0.000128,2]
[338613186,1726800638542,-4992.38320392,0.000128,2]
[338613187,1726800638554,-1065.42965123,0.000128,2]
[338613188,1726800638700,-2424.99999999,0.000128,2]
[338613193,1726800640195,150.0,0.00022986,120]
[338613197,1726800640562,-20.00096145,0.000128,2]
[338613206,1726800640700,-1129.24235121,0.000128,2]
[338613207,1726800640712,-815.8129554,0.000128,2]
[338613208,1726800640723,-543.97966875,0.000128,2]
[338613209,1726800640735,-355.34976048,0.000128,2]
[338613210,1726800640746,-5648.17709926,0.000128,2]
[338613283,1726800643590,-586.47,0.000128,2]
[338613284,1726800643601,-1140.2,0.000128,2]
[338613285,1726800643668,262.27,0.00012193,2]
[338613505,1726800646359,-6181.72413953,0.000128,2]
[338613537,1726800646525,-1567.33471421,0.000128,2]
[338613539,1726800646537,-980.18249376,0.000128,2]
[338613767,1726800650830,10000.0,0.0001216,2]
[338613769,1726800659035,4143.48520642,0.0001216,2]
[338613770,1726800713978,159.77984519,0.000127,2]
[338613771,1726800715036,216.79,0.00010248,2]
[338613772,1726800715237,216.79,0.00012512,2]
[338613773,1726800718119,301.78373222,0.00012597,2]
[338613774,1726800718993,159.77984519,0.00012729,2]
[338613775,1726800719442,200538.3011,0.000127,2]
[338613776,1726800730501,357.22477362,0.000127,2]
[338613777,1726800732363,49130.9594,0.000127,2]
[338613778,1726800752952,337.091813,0.00012742,2]
[338613779,1726800766147,215.0,0.00023,120]
[338613780,1726800775064,337.091813,0.00012742,2]
[338613781,1726800792917,337.091813,0.00012742,2]
[338613782,1726800801630,11709.2563,0.000127,2]
[338613783,1726800823945,150.0,0.00012742,2]
[338613784,1726800829138,150.0,0.00012742,2]
[338613785,1726800829875,150.0,0.00012742,2]
[338613786,1726800830517,150.0,0.00012742,2]
[338613787,1726800831259,150.0,0.00012742,2]
[338613788,1726800831820,150.0,0.00012742,2]
[338613789,1726800832419,150.0,0.00012742,2]
[338613790,1726800832996,150.0,0.00012742,2]
[338613791,1726800833650,150.0,0.00012742,2]
[338613792,1726800834236,150.0,0.00012742,2]
[338613793,1726800835127,150.0,0.00012742,2]
[338613794,1726800835782,150.0,0.00012742,2]
[338613795,1726800854024,1035.0303,0.000127,2]
[338613796,1726800874527,211.63621322,0.000127,2]
[338613797,1726801028940,200.0,0.00011953,2]
[338613798,1726801127298,250.0,0.00012031,2]
[338613799,1726801161655,160.4,0.00012031,2]
[338613800,1726801169263,375.50829568,0.000127,2]
[338613801,1726801174265,375.50829562,0.00012722,2]
[338613802,1726801215956,150.0,0.00022986,120]
[338613803,1726801239311,202.89,9.977e-05,2]
[338613804,1726801239346,202.89,0.00012241,2]
[338613805,1726801399892,167.27,0.00012445,2]
[338613808,1726801620871,510.0,0.00022876,120]
[338613809,1726801644621,300.40663655,0.000127,2]
[338613810,1726801649589,300.40663649,0.00012722,2]
[338613811,1726801668856,1000.0,0.00011906,2]
[338613812,1726801690879,250.0,0.00011868,2]
[338613813,1726801735489,166.86,0.00011868,2]
[338613814,1726801784995,190.39,9.95e-05,2]
[338613815,1726801785212,190.39,0.00012214,2]
[338613816,1726801813188,150.0,0.00022986,120]
[338613820,1726801831654,-150.0,0.00012743,2]
[338613821,1726801831663,-239.52964756,0.00012743,2]
[338613822,1726801831676,-60.47035244,0.00012743,2]
[338613823,1726801831685,-257.29574425,0.00012744,2]
[338613824,1726801831696,-552.70425575,0.00012744,2]
[338613825,1726801831705,-553.0,0.00012744,2]
[338613826,1726801831715,-869.11824425,0.00012744,2]
[338613827,1726801831726,-792.5901174,0.00012744,2]
[338613828,1726801831944,-241.29163835,0.00012744,2]
[338613829,1726801831954,-301.61549984,0.00012744,2]
[338613830,1726801831965,-541.0092199,0.00012744,2]
[338613832,1726801831976,-261.39657885,0.00012744,2]
[338613834,1726801831987,-809.97870141,0.00012744,2]
[338613836,1726801831997,-806.0,0.00012744,2]
[338613838,1726801832006,-2215.18170654,0.00012744,2]
[338613840,1726801832016,-1130.81829346,0.00012744,2]
[338613842,1726801832026,-248.0,0.00012744,2]
[338613843,1726801832036,-300.40663649,0.00012744,2]
[338613844,1726801832045,-300.40663649,0.00012767,2]
[338613845,1726801832055,-182.9740727,0.00012778,2]
[338613846,1726801832064,-300.40663649,0.00012789,2]
[338613847,1726801832074,-156.53,0.0001279,2]
[338613848,1726801832083,-2426.27458876,0.00012792,2]
[338613849,1726801832095,-2613.10872722,0.00012792,2]
[338613850,1726801832106,-598.97184433,0.00012792,2]
[338613851,1726801832117,-227.64483969,0.00012792,2]
[338613852,1726801832126,-150.732,0.00012792,2]
[338613853,1726801832136,-1121.62316031,0.00012792,2]
[338613854,1726801832147,-22.37683969,0.00012792,2]
[338613855,1726801832156,-1080.0,0.00012792,2]
[338613856,1726801832165,-328.67286983,0.00012798,2]
[338613857,1726801832175,-500.0,0.00012799,2]
[338613858,1726801832185,-584.92105097,0.00012799,2]
[338613859,1726801832194,-406.22923951,0.00012799,2]
[338613860,1726801835723,10547.89,0.00011873,2]
[338613861,1726801837670,-93.76076049,0.00012799,2]
[338613862,1726801837681,-2084.22,0.000128,2]
[338613863,1726801837691,-3663.01945042,0.000128,2]
[338613864,1726801837703,-1845.53054958,0.000128,2]
[338613865,1726801837712,-449.88034353,0.000128,2]
[338613866,1726801837721,-5866.14143498,0.000128,2]
[338613867,1726801837732,-537.0,0.000128,2]
[338613868,1726801837743,-4012.5850372,0.000128,2]
[338613869,1726801837754,-503.33525428,0.000128,2]
[338613870,1726801837827,-5906.63080696,0.000128,2]
[338613871,1726801837839,-1552.178219,0.000128,2]
[338613872,1726801837851,-990.63368508,0.000128,2]
[338613874,1726801837976,-1248477.75121905,0.000128,2]
[338613878,1726801839607,-1025.24744927,0.000128,2]
[338613879,1726801839787,-961.27203814,0.000128,2]
[338613880,1726801839799,-3170.01195793,0.000128,2]
[338613881,1726801839814,-1399.85886565,0.000128,2]
[338613882,1726801839827,-69956.41979343,0.000128,2]
[338613883,1726801839838,-381.9019701,0.000128,2]
[338613884,1726801839849,-316.03,0.000128,2]
[338613885,1726801839861,-285.42873492,0.000128,2]
[338613886,1726801839874,-1439.07083368,0.000128,2]
[338613887,1726801839963,-106145.52070486,0.000128,2]
[338613888,1726801839974,-19326.33767497,0.000128,2]
[338613895,1726801842777,-199.59513121,0.00012799,2]
[338613897,1726801842788,-670.35857784,0.000128,2]
[338613899,1726801842801,-1328.12592741,0.000128,2]
[338613902,1726801842812,-1217.47393628,0.000128,2]
[338613905,1726801842824,-627.59413878,0.000128,2]
[338613918,1726801842938,-323.966194,0.000128,2]
[338613920,1726801842950,-778.84,0.000128,2]
[338613923,1726801842962,-1968.40098272,0.000128,2]
[338613936,1726801843091,-478.6711612,0.000128,2]
[338613944,1726801843159,1332.87973536,0.0001216,2]
[338613976,1726801844899,500.0,0.00022,60]
[338613978,1726801845811,-1447.04563806,0.000128,2]
[338613979,1726801845824,-3607.04248416,0.000128,2]
[338613980,1726801845836,-190558.68334031,0.000128,2]
[338613981,1726801874655,150.0,0.00012732,2]
[338613982,1726801884699,677.775611,0.000127,2]
[338613983,1726801895473,500.0,0.00011164,2]
[338613984,1726801905855,150.0,0.00012668,2]
[338613985,1726801909782,39506.9,0.000127,2]
[338613986,1726801910341,269.93460977,0.000127,2]
[338613987,1726801911110,75020.57113237,0.000126,2]
[338613988,1726801914013,150.0,0.00012662,2]
[338613989,1726801923556,352.35153843,0.000127,2]
[338613990,1726801926261,178.80766694,0.000127,2]
[338613991,1726801937850,150.0,0.00012713,2]
[338613992,1726801938034,150.0,0.00012597,2]
[338613993,1726801944664,17274.581829,0.000127,2]
[338613994,1726801947006,6346.0604,0.000127,2]
[338613995,1726801953142,1000.0,0.000127,2]
[338613996,1726801961890,150.0,0.00012605,2]
[338613997,1726801968947,61115.2917,0.000127,2]
[338613998,1726801977816,150.0,0.00012683,2]
[338613999,1726801978012,150.0,0.00012645,2]
[338614000,1726801988361,220.3288,0.000127,2]
[338614001,1726802003433,4951.27,0.00022,60]
[338614002,1726802014175,373.61655569,0.000127,2]
[338614003,1726802041058,233.091813,0.00012742,2]
[338614004,1726802045560,471.12601385,0.000127,2]
[338614005,1726802054238,233.091813,0.00012742,2]
[338614006,1726802062598,290.79337268,0.000127,2]
[338614007,1726802069327,233.091813,0.00012742,2]
[338614008,1726802083304,153.76,0.00010959,2]
[338614009,1726802104901,4658.06159018,0.000127,2]
[338614010,1726802109865,4658.06159013,0.00012722,2]
[338614011,1726802144211,249.07770378,0.000127,2]
[338614012,1726802165753,7523.376814,0.0001268,2]
[338614013,1726802180773,314.08400924,0.000127,2]
[338614014,1726802198353,1269.53436859,0.000127,2]
[338614015,1726802226283,200.0,0.00011819,2]
[338614016,1726802245253,250.0,0.00012047,2]
[338614017,1726802247181,167.4738709,0.000127,2]
[338614018,1726802274715,166.05180252,0.000127,2]
[338614019,1726802315980,209.38933948,0.000127,2]
[338614020,1726802325801,186.66,9.9e-05,2]
[338614021,1726802326077,186.66,0.00012164,2]
[338614022,1726802384550,423.06,0.00012047,2]
[338614023,1726802392178,150.0,0.00022986,120]
[338614024,1726802507270,150.0,0.00012693,2]
[338614025,1726802507302,150.0,0.00012586,2]
[338614026,1726802507356,150.0,0.00012638,2]
[338614027,1726802507388,150.0,0.00012694,2]
[338614028,1726802507421,150.0,0.00012652,2]
[338614029,1726802507478,167.96005779,0.00012731,2]
[338614030,1726802526138,732.42,0.00011824,2]
[338614032,1726802567368,150.0,0.0001259,2]
[338614033,1726802567405,150.0,0.00012678,2]
[338614034,1726802567442,150.0,0.00012638,2]
[338614035,1726802567496,150.0,0.00012571,2]
[338614036,1726802567556,150.0,0.00012727,2]
[338614037,1726802567672,150.0,0.00012734,2]
[338614038,1726802568198,203.80064605,0.00012725,2]
[338614039,1726802580241,3726.44927214,0.000127,2]
[338614040,1726802585234,3726.4492721,0.00012722,2]
[338614041,1726802594989,203.53107199,0.000127,2]
[338614042,1726802600367,8853.96,0.00012047,2]
[338614043,1726802627094,150.0,0.00012604,2]
[338614044,1726802704758,150.0,0.00011515,2]
[338614045,1726802705122,150.0,0.00011942,2]
[338614046,1726802705439,150.0,0.00012368,2]
[338614047,1726802708043,254.21176106,0.00011515,2]
[338614048,1726802710644,246.48401165,0.00011515,2]
[338614049,1726802713025,171.46792142,0.00011515,2]
[338614050,1726802716436,150.0,0.00011515,2]
[338614051,1726802718647,153.46662047,0.00011515,2]
[338614052,1726802722108,150.0,0.00011515,2]
[338614053,1726802723951,150.0,0.00011515,2]
[338614054,1726802725860,256.06319512,0.00011515,2]
[338614055,1726802727789,150.0,0.00011515,2]
[338614056,1726802732665,150.0,0.00011515,2]
[338614057,1726802737610,244.14790521,0.00011515,2]
[338614058,1726802806015,510.0,0.00022876,120]
[338614059,1726802821347,300.0,0.00012742,2]
[338614060,1726802837321,250.0,0.00012047,2]
[338614061,1726802837570,1000.0,0.00011812,2]
[338614062,1726802850097,6940.92,0.00011812,2]
[338614063,1726802881342,300.0,0.00012742,2]
[338614064,1726802901302,23890.0,0.0001181,2]
[338614065,1726802904969,1852.42,0.00012047,2]
[338614067,1726802934078,150.0,0.00022986,120]
[338614074,1726803001612,300.0,0.00012742,2]
[338614075,1726803030115,1010.0,0.000127,2]
[338614081,1726803031709,-796.0,0.00012743,2]
[338614082,1726803031719,-796.0,0.00012743,2]
[338614083,1726803031728,-796.0,0.00012743,2]
[338614085,1726803031738,-558.57874193,0.00012743,2]
[338614099,1726803031845,-237.42125807,0.00012743,2]
[338614100,1726803031855,-796.0,0.00012743,2]
[338614101,1726803031864,-799.06609146,0.00012743,2]
[338614102,1726803031876,-150.0,0.00012754,2]
[338614103,1726803031886,-150.0,0.00012768,2]
[338614104,1726803031895,-150.0,0.0001277,2]
[338614105,1726803031904,-163.31017601,0.00012773,2]
[338614106,1726803031913,-500.0,0.00012773,2]
[338614107,1726803031922,-150.0,0.00012774,2]
[338614108,1726803031931,-150.0,0.00012776,2]
[338614109,1726803031939,-150.0,0.00012776,2]
[338614110,1726803031949,-150.0,0.00012777,2]
[338614111,1726803031959,-9999.99,0.00012777,2]
[338614112,1726803031967,-299.99,0.00012777,2]
[338614113,1726803031977,-150.0,0.00012786,2]
[338614114,1726803031986,-499.99,0.00012786,2]
[338614115,1726803031995,-150.0,0.00012788,2]
[338614116,1726803032004,-150.0,0.0001279,2]
[338614117,1726803032014,-156.89,0.0001279,2]
[338614118,1726803032023,-150.0,0.00012792,2]
[338614119,1726803032032,-448.0,0.00012794,2]
[338614120,1726803032040,-1549.0,0.00012794,2]
[338614121,1726803032050,-625.536,0.00012794,2]
[338614122,1726803032059,-5866.0,0.00012794,2]
[338614123,1726803032068,-1262.0,0.00012794,2]
[338614124,1726803032078,-269.35760578,0.00012795,2]
[338614125,1726803032087,-164.73831933,0.00012795,2]
[338614126,1726803032096,-150.0,0.00012795,2]
[338614127,1726803032105,-298.90185586,0.00012799,2]
[338614128,1726803032114,-11872.40933946,0.00012799,2]
[338614129,1726803032124,-721.835,0.00012799,2]
[338614130,1726803032134,-229.174,0.00012799,2]
[338614131,1726803032143,-73007.64911187,0.000128,2]
[338614132,1726803032154,-440.57660707,0.000128,2]
[338614133,1726803032165,-263.99149982,0.000128,2]
[338614134,1726803032176,-1167.26,0.000128,2]
[338614135,1726803032187,-549.22507749,0.000128,2]
[338614136,1726803032207,-340.28165674,0.000128,2]
[338614137,1726803032218,-3834.18185265,0.000128,2]
[338614138,1726803032231,-5237.31267236,0.000128,2]
[338614139,1726803032243,-8630.5353258,0.000128,2]
[338614140,1726803032253,-655.60712406,0.000128,2]
[338614141,1726803033949,175.53,0.00010045,2]
[338614142,1726803034357,175.53,0.00012309,2]
[338614144,1726803037916,-150.0,0.00012794,2]
[338614145,1726803037926,-58217.44992988,0.000128,2]
[338614146,1726803037936,-1356622.20124129,0.000128,2]
[338614147,1726803037947,-1881.95442029,0.000128,2]
[338614148,1726803038026,-1002.1262401,0.000128,2]
[338614149,1726803038037,-7155.00000173,0.000128,2]
[338614150,1726803038146,-380156.02938951,0.000128,2]
[338614151,1726803040092,-180.662,0.00012794,2]
[338614152,1726803040102,-508.10488529,0.000128,2]
[338614153,1726803040113,-950.64,0.000128,2]
[338614154,1726803040124,-502.51489372,0.000128,2]
[338614161,1726803042796,-3917.07649259,0.000128,2]
[338614162,1726803042911,-809.0,0.00012794,2]
[338614163,1726803042921,-27641.00000001,0.000128,2]
[338614164,1726803043028,-24983.94708018,0.000128,2]
[338614165,1726803043040,-527.30345343,0.000128,2]
[338614168,1726803046260,-8755.59987919,0.000128,2]
[338614169,1726803046276,-1692.13433811,0.000128,2]
[338614170,1726803046287,-617.64,0.000128,2]
[338614171,1726803046298,-933.17494973,0.000128,2]
[338614172,1726803046310,-27782.63599942,0.000128,2]
[338614173,1726803055553,2981.15941768,0.000127,2]
[338614174,1726803060551,2981.15941768,0.00012722,2]
[338614175,1726803071367,2054.35,0.00011963,2]
[338614176,1726803075307,92261.2721,0.000127,2]
[338614178,1726803077524,155.92,0.00012047,2]
[338614179,1726803088853,1883.4005,0.000127,2]
[338614180,1726803094154,165.53326616,0.000127,2]
[338614181,1726803116919,347.47830323,0.000127,2]
[338614182,1726803122588,160.4,0.00011893,2]
[338614183,1726803129443,1196.99,0.00012047,2]
[338614184,1726803158338,13929.25,0.00012047,2]
[338614185,1726803168163,171.32,0.00011885,2]
[338614186,1726803168377,171.32,0.000119,2]
[338614187,1726803168589,171.32,0.00011915,2]
[338614188,1726803168813,171.32,0.00011929,2]
[338614189,1726803169015,171.32,0.00011944,2]
[338614190,1726803227383,150.0,0.00012603,2]
[338614191,1726803227416,150.0,0.00012716,2]
[338614192,1726803227447,150.0,0.00012595,2]
[338614193,1726803227497,150.0,0.00012545,2]
[338614194,1726803227554,150.0,0.00012659,2]
[338614195,1726803227668,150.0,0.00012622,2]
[338614196,1726803242906,169.88,0.00012445,2]
[338614197,1726803251561,182.25,0.00010959,2]
[338614198,1726803322586,209.99,0.00011929,2]
[338614199,1726803368917,250.0,0.00011929,2]
[338614200,1726803377156,1500.0,0.00012742,2]
[338614201,1726803427896,160.0,0.00012,2]
[338614202,1726803530880,3382.74816368,0.000127,2]
[338614203,1726803535871,3382.74816361,0.00012722,2]
[338614204,1726803546421,165.51,0.00010129,2]
[338614205,1726803546645,165.51,0.00012393,2]
[338614206,1726803564684,500.0,0.00011164,2]
[338614207,1726803567493,1000.0,0.00011906,2]
[338614208,1726803570120,150.0,0.00022986,120]
[338614209,1726803758217,166.86,0.00011891,2]
[338614210,1726803887369,150.0,0.0001253,2]
[338614211,1726803887418,150.0,0.00012557,2]
[338614212,1726803962866,314.98,0.00012043,2]
[338614213,1726804006164,2706.19853096,0.000127,2]
[338614214,1726804011166,2706.19853088,0.00012722,2]
[338614215,1726804018854,2000.0,0.00023,120]
[338614216,1726804023266,510.0,0.00022876,120]
[338614217,1726804028395,2000.0,0.00023,120]
[338614218,1726804036896,2000.0,0.00023,120]
[338614219,1726804044093,2000.0,0.00023,120]
[338614220,1726804050480,2000.0,0.00023,120]
[338614221,1726804074951,250.0,0.00011901,2]
[338614222,1726804083510,211.37,0.00010959,2]
[338614223,1726804094031,173.54,0.00010959,2]
[338614224,1726804104537,867.74,0.00010959,2]
[338614225,1726804108637,200.0,0.00011901,2]
[338614226,1726804112459,250.0,0.00011893,2]
[338614227,1726804119425,1050.0,0.00011,2]
[338614228,1726804124255,200.0,0.00011882,2]
[338614229,1726804165840,500.0,0.00010068,2]
[338614230,1726804178807,156.49,9.975e-05,2]
[338614231,1726804179222,156.49,0.00012239,2]
[338614232,1726804192257,500.0,0.00022999,120]
[338614233,1726804192536,270.64501669,0.00022999,120]
[338614234,1726804193913,500.0,0.00022999,120]
[338614235,1726804194178,500.0,0.00022999,120]
[338614236,1726804194431,643.23041889,0.00022999,120]
[338614244,1726804198438,174.59014308,0.00022999,120]
[338614279,1726804202908,500.0,0.00022999,120]
[338614284,1726804203172,338.26393924,0.00022999,120]
[338614345,1726804207377,255.5026561,0.00022999,120]
[338614407,1726804211680,195.69134793,0.00022999,120]
[338614437,1726804213980,179.00159677,0.00022999,120]
[338614486,1726804220117,500.0,0.00022999,120]
[338614490,1726804220312,326.79422192,0.00022999,120]
[338614504,1726804221187,188.7129,0.00022999,120]
[338614593,1726804230235,525.86868621,0.00022999,120]
[338614600,1726804230988,500.0,0.00022999,120]
[338614603,1726804231309,387.78082263,0.00022999,120]
[338614621,1726804231958,-2706.19853088,0.00012744,2]
[338614622,1726804231968,-2706.19853088,0.00012767,2]
[338614623,1726804231977,-154.00400739,0.00012776,2]
[338614624,1726804231987,-2706.19853088,0.00012789,2]
[338614625,1726804231998,-155.03,0.0001279,2]
[338614626,1726804232017,-300.0,0.00012797,2]
[338614627,1726804232026,-577.468,0.00012798,2]
[338614628,1726804232035,-22374.03551211,0.00012799,2]
[338614630,1726804232043,-150.0,0.00012799,2]
[338614631,1726804232053,-76172.03542888,0.000128,2]
[338614632,1726804232062,-18838.83145897,0.000128,2]
[338614694,1726804235040,500.0,0.00022999,120]
[338614701,1726804235328,500.0,0.00022999,120]
[338614710,1726804235810,500.0,0.00022999,120]
[338614713,1726804235890,214.55216809,0.00022999,120]
[338614750,1726804237804,-33951.0,0.000128,2]
[338614756,1726804237860,-2735.20446315,0.000128,2]
[338614757,1726804237973,-69887.88910638,0.000128,2]
[338614758,1726804237985,-328.445,0.000128,2]
[338614760,1726804238042,-10628.92392082,0.000128,2]
[338614844,1726804239844,-630.22554663,0.000128,2]
[338614880,1726804242026,-2244.56905534,0.000128,2]
[338614881,1726804242037,-3584.498186,0.000128,2]
[338614882,1726804242048,-952.4396617,0.000128,2]
[338614883,1726804242059,-2228.77667115,0.000128,2]
[338614887,1726804242188,-139487.21241468,0.000128,2]
[338614901,1726804242846,-2047.18354356,0.000128,2]
[338614905,1726804242954,-7367.11495268,0.000128,2]
[338614906,1726804243012,-309026.17413237,0.000128,2]
[338614937,1726804245751,-623.2952562,0.000128,2]
[338614941,1726804246075,-9082.82517496,0.000128,2]
[338614966,1726804247934,150.46889,0.00012672,2]
[338615082,1726804255461,150.0,0.00022986,120]
[338615084,1726804255545,181.0425789,0.00022999,120]
[338615157,1726804261293,6251.77013038,0.0001268,2]
[338615159,1726804261345,500.0,0.00022999,120]
[338615162,1726804261605,358.32156236,0.00022999,120]
[338615197,1726804263943,154.65,0.00011997,2]
[338615204,1726804264348,154.65,0.00012002,2]
[338615207,1726804264614,154.65,0.00012008,2]
[338615210,1726804264831,154.65,0.00012013,2]
[338615214,1726804265039,154.65,0.00012019,2]
[338615218,1726804265259,154.65,0.00012024,2]
[338615220,1726804265467,154.65,0.0001203,2]
[338615224,1726804265671,154.65,0.00012035,2]
[338615229,1726804265885,154.65,0.0001204,2]
[338615233,1726804266091,154.65,0.00012046,2]
[338615238,1726804266344,154.65,0.00012051,2]
[338615241,1726804266590,154.65,0.00012057,2]
[338615511,1726804291560,508.0228,0.000127,2]
[338615569,1726804297598,366.74081871,0.00022999,120]
[338615606,1726804301344,500.0,0.00022999,120]
[338615609,1726804301571,204.59609466,0.00022999,120]
[338615610,1726804301607,500.0,0.00022999,120]
[338615615,1726804302041,486.032854,0.00022999,120]
[338615632,1726804304507,500.0,0.00022999,120]
[338615636,1726804304780,500.0,0.00022999,120]
[338615639,1726804305041,500.0,0.00022999,120]
[338615643,1726804305300,500.0,0.00022999,120]
[338615647,1726804305604,500.0,0.00022999,120]
[338615651,1726804305907,500.0,0.00022999,120]
[338615655,1726804306172,500.0,0.00022999,120]
[338615658,1726804306303,10000.0,0.0001216,2]
[338615661,1726804306549,544.07680141,0.00022999,120]
[338615694,1726804309482,345.04168564,0.000127,2]
[338615746,1726804312773,428.2,0.0001202,2]
[338615751,1726804313120,152.38329257,0.00022999,120]
[338615879,1726804322717,155.27470984,0.00022999,120]
[338616034,1726804332577,500.0,0.00010068,2]
[338616036,1726804332773,174.01220376,0.000127,2]
[338616044,1726804333419,225.26998016,0.00022999,120]
[338616077,1726804337531,249.60093866,0.00022999,120]
[338616097,1726804339500,165.91800675,0.000127,2]
[338616225,1726804349414,500.0,0.00022999,120]
[338616229,1726804349694,166.61372764,0.00022999,120]
[338616396,1726804361210,166.49803307,0.00022999,120]
[338616413,1726804362487,10000.0,0.0001216,2]
[338616424,1726804363195,7129.94850261,0.0001216,2]
[338616470,1726804366964,519.88613392,0.00022999,120]
[338616485,1726804368157,592.9654,0.000127,2]
[338616521,1726804370718,188.07592942,0.00022999,120]
[338616543,1726804372980,382.28264993,0.00022999,120]
[338616602,1726804377600,247.67601487,0.00022999,120]
[338616673,1726804380565,205.11066064,0.00022999,120]
[338616696,1726804381704,500.0,0.00022999,120]
[338616709,1726804382181,500.0,0.00022999,120]
[338616713,1726804382299,500.0,0.00022999,120]
[338616727,1726804382920,508.43181397,0.00022999,120]
[338616731,1726804383264,167.41296207,0.00022999,120]
[338616757,1726804385881,377.64634313,0.00022999,120]
[338616851,1726804393542,360.94173049,0.00022999,120]
[338617007,1726804405910,893.66895658,0.000127,2]
[338617019,1726804406511,500.0,0.00022999,120]
[338617023,1726804406753,500.0,0.00022999,120]
[338617034,1726804407340,207.0329,0.00022999,120]
[338617059,1726804409319,201.7482527,0.00022999,120]
[338617068,1726804409940,169.06040603,0.00022999,120]
[338617173,1726804419678,237.73636191,0.00012496,2]
[338617185,1726804420323,185.74541579,0.000127,2]
[338617229,1726804423025,-150.0,0.00012782,2]
[338617231,1726804423050,-151.070912,0.00012798,2]
[338617232,1726804423074,-500.0,0.00012799,2]
[338617234,1726804423096,-500.0,0.00012799,2]
[338617235,1726804423118,-500.0,0.00012799,2]
[338617237,1726804423141,-500.0,0.00012799,2]
[338617238,1726804423164,-500.0,0.00012799,2]
[338617239,1726804423185,-200.0,0.00012799,2]
[338617240,1726804423206,-500.0,0.00012799,2]
[338617242,1726804423227,-500.0,0.00012799,2]
[338617243,1726804423248,-500.0,0.00012799,2]
[338617244,1726804423269,-500.0,0.00012799,2]
[338617245,1726804423291,-500.0,0.00012799,2]
[338617247,1726804423312,-500.0,0.00012799,2]
[338617248,1726804423333,-500.0,0.00012799,2]
[338617249,1726804423354,-500.0,0.00012799,2]
[338617250,1726804423375,-500.0,0.00012799,2]
[338617251,1726804423397,-404.99644037,0.00012799,2]
[338617252,1726804423418,-500.0,0.00012799,2]
[338617253,1726804423439,-500.0,0.00012799,2]
[338617254,1726804423461,-500.0,0.00012799,2]
[338617255,1726804423482,-150.0,0.00012799,2]
[338617256,1726804423504,-190.28548967,0.00012799,2]
[338617257,1726804423526,-660.42235019,0.00012799,2]